fUSD/lending_fUSD_20250112
["ID","MTS","AMOUNT","RATE_DAILY","PERIOD"]
[348681206,1736712645235,-632.07,0.00010182,2]
[348681207,1736712645245,-500.0,0.00010182,2]
[348681208,1736712645254,-500.0,0.00010182,2]
[348681209,1736712645263,-500.0,0.00010182,2]
[348681210,1736712645273,-993.8,0.00010182,2]
[348681211,1736712645283,-500.0,0.00010183,2]
[348681212,1736712645292,-500.0,0.00010183,2]
[348681213,1736712645301,-510.19,0.00010183,2]
[348681214,1736712645310,-500.0,0.00010183,2]
[348681215,1736712645319,-500.0,0.00010183,2]
[348681216,1736712645328,-500.0,0.00010183,2]
[348681217,1736712645338,-500.0,0.00010183,2]
[348681218,1736712645347,-500.0,0.00010183,2]
[348681219,1736712645356,-500.0,0.00010183,2]
[348681220,1736712645365,-500.0,0.00010183,2]
[348681221,1736712645375,-500.0,0.00010183,2]
[348681222,1736712645384,-500.0,0.00010183,2]
[348681223,1736712645393,-500.0,0.00010183,2]
[348681224,1736712645404,-500.0,0.00010183,2]
[348681225,1736712645421,-500.0,0.00010183,2]
[348681226,1736712645430,-500.0,0.00010183,2]
[348681227,1736712645439,-500.0,0.00010183,2]
[348681228,1736712645448,-500.0,0.00010183,2]
[348681229,1736712645459,-738.14,0.00010183,2]
[348681230,1736712645468,-539.62,0.00010183,2]
[348681231,1736712645478,-500.0,0.00010183,2]
[348681232,1736712645488,-1052.86,0.00010183,2]
[348681233,1736712645498,-751.08,0.00010183,2]
[348681234,1736712645507,-532.75,0.00010183,2]
[348681235,1736712645517,-831.34,0.00010183,2]
[348681236,1736712645526,-355.72,0.00010183,2]
[348681237,1736712645536,-638.66,0.00010183,2]
[348681238,1736712645546,-500.0,0.00010183,2]
[348681239,1736712645558,-500.0,0.00010183,2]
[348681240,1736712645569,-500.0,0.00010183,2]
[348681241,1736712645578,-873.65,0.00010183,2]
[348681242,1736712645588,-500.0,0.00010183,2]
[348681243,1736712645599,-1154.2,0.00010183,2]
[348681244,1736712645610,-1526.88,0.00010183,2]
[348681245,1736712645620,-1004.48,0.00010183,2]
[348681246,1736712645630,-986.69,0.00010183,2]
[348681247,1736712645641,-945.58,0.00010183,2]
[348681248,1736712645651,-3130.05,0.00010183,2]
[348681249,1736712645661,-887.76,0.00010183,2]
[348681250,1736712645671,-1301.7,0.00010183,2]
[348681251,1736712645682,-918.22,0.00010183,2]
[348681252,1736712645691,-2136.13,0.00010183,2]
[348681253,1736712645701,-554.45,0.00010183,2]
[348681254,1736712645710,-1105.21,0.00010183,2]
[348681255,1736712645719,-838.97,0.00010183,2]
[348681256,1736712645728,-1146.87,0.00010183,2]
[348681257,1736712645737,-1041.41,0.00010183,2]
[348681258,1736712645746,-500.0,0.00010183,2]
[348681259,1736712645755,-911.09,0.00010183,2]
[348681260,1736712645765,-830.05,0.00010183,2]
[348681261,1736712645775,-1323.08,0.00010183,2]
[348681262,1736712645784,-499.55482685,0.00010185,2]
[348681263,1736712645793,-160.84536454,0.00010185,2]
[348681264,1736712645802,-150.8549692,0.00010185,2]
[348681265,1736712645812,-159.77187865,0.00010185,2]
[348681266,1736712645821,-156.7464976,0.00010199,2]
[348681267,1736712645830,-495.01602722,0.0001021,2]
[348681268,1736712645840,-150.0,0.00010245,2]
[348681269,1736712645851,-4305.5978,0.00010259,2]
[348681270,1736712645861,-150.0,0.00010265,2]
[348681271,1736712645871,-150.0,0.00010266,2]
[348681272,1736712645884,-757.74,0.0001027,2]
[348681273,1736712645894,-1842.24,0.0001027,2]
[348681274,1736712645903,-1719.0,0.0001027,2]
[348681275,1736712645912,-734.77,0.0001027,2]
[348681276,1736712645924,-1269.92,0.0001027,2]
[348681277,1736712645933,-800.91,0.0001027,2]
[348681278,1736712645943,-515.51,0.0001027,2]
[348681279,1736712645953,-2080.74,0.0001027,2]
[348681280,1736712645962,-1140.87,0.0001027,2]
[348681281,1736712645971,-837.61,0.0001027,2]
[348681282,1736712645980,-500.0,0.0001027,2]
[348681283,1736712645989,-648.86,0.0001027,2]
[348681284,1736712645999,-500.0,0.00010271,2]
[348681285,1736712646007,-524.09,0.00010271,2]
[348681286,1736712646016,-803.4,0.00010271,2]
[348681287,1736712646025,-1566.51,0.00010271,2]
[348681288,1736712646034,-939.66,0.00010271,2]
[348681289,1736712646043,-628.68,0.00010271,2]
[348681290,1736712646053,-647.88809,0.00010271,2]
[348681291,1736712646062,-603.991468,0.00010271,2]
[348681292,1736712646071,-2883.78,0.00010271,2]
[348681293,1736712646081,-757.35,0.00010271,2]
[348681294,1736712646091,-674.02,0.00010271,2]
[348681295,1736712646100,-659.59,0.00010271,2]
[348681296,1736712646109,-500.0,0.00010272,2]
[348681297,1736712646118,-574.95,0.00010272,2]
[348681298,1736712646128,-238.81,0.00010272,2]
[348681299,1736712646137,-324.39721064,0.00010272,2]
[348681300,1736712646146,-500.0,0.00010272,2]
[348681301,1736712646155,-695.67,0.00010272,2]
[348681302,1736712646164,-618.49935305,0.00010272,2]
[348681303,1736712646173,-500.0,0.00010272,2]
[348681304,1736712646182,-576.35,0.00010272,2]
[348681305,1736712646192,-500.0,0.00010272,2]
[348681306,1736712646201,-500.0,0.00010272,2]
[348681307,1736712646210,-500.0,0.00010272,2]
[348681308,1736712646219,-547.83,0.00010272,2]
[348681309,1736712646229,-500.0,0.00010272,2]
[348681310,1736712646238,-535.21,0.00010272,2]
[348681311,1736712646247,-478.59621757,0.00010272,2]
[348681312,1736712646256,-523.45,0.00010272,2]
[348681313,1736712646265,-500.0,0.00010272,2]
[348681314,1736712646275,-500.0,0.00010272,2]
[348681315,1736712646284,-500.0,0.00010272,2]
[348681316,1736712646293,-500.0,0.00010272,2]
[348681317,1736712646302,-652.68,0.00010272,2]
[348681318,1736712646312,-500.0,0.00010272,2]
[348681319,1736712646321,-500.0,0.00010272,2]
[348681320,1736712646330,-632.58,0.00010272,2]
[348681321,1736712646342,-500.0,0.00010272,2]
[348681322,1736712646353,-752.01,0.00010272,2]
[348681323,1736712646362,-607.94,0.00010272,2]
[348681324,1736712646371,-500.0,0.00010272,2]
[348681325,1736712646380,-352.60376622,0.00010272,2]
[348681326,1736712646389,-500.0,0.00010272,2]
[348681327,1736712646398,-628.06,0.00010272,2]
[348681328,1736712646408,-500.0,0.00010272,2]
[348681329,1736712646419,-500.0,0.00010272,2]
[348681330,1736712646428,-500.0,0.00010272,2]
[348681331,1736712646438,-500.0,0.00010272,2]
[348681332,1736712646448,-500.0,0.00010272,2]
[348681333,1736712646459,-500.0,0.00010272,2]
[348681334,1736712646468,-702.13,0.00010272,2]
[348681335,1736712646477,-672.86,0.00010272,2]
[348681336,1736712646489,-555.66,0.00010272,2]
[348681337,1736712646499,-731.29,0.00010272,2]
[348681338,1736712646509,-625.61,0.00010272,2]
[348681339,1736712646520,-500.0,0.00010272,2]
[348681340,1736712646532,-500.0,0.00010272,2]
[348681341,1736712646542,-500.0,0.00010272,2]
[348681342,1736712646552,-661.41,0.00010272,2]
[348681343,1736712646562,-500.0,0.00010272,2]
[348681344,1736712646572,-500.0,0.00010272,2]
[348681345,1736712646582,-778.03,0.00010272,2]
[348681346,1736712646593,-614.98,0.00010272,2]
[348681347,1736712646602,-587.75,0.00010272,2]
[348681348,1736712646611,-549.03,0.00010272,2]
[348681349,1736712646621,-500.0,0.00010272,2]
[348681350,1736712646629,-500.0,0.00010272,2]
[348681351,1736712646639,-500.0,0.00010272,2]
[348681352,1736712646648,-561.06,0.00010272,2]
[348681353,1736712646657,-500.0,0.00010272,2]
[348681354,1736712646666,-500.0,0.00010272,2]
[348681355,1736712646675,-544.16,0.00010272,2]
[348681356,1736712646687,-500.0,0.00010272,2]
[348681357,1736712646697,-562.49,0.00010272,2]
[348681358,1736712646707,-500.0,0.00010272,2]
[348681359,1736712646717,-500.0,0.00010272,2]
[348681360,1736712646727,-524.66,0.00010272,2]
[348681361,1736712646739,-738.6,0.00010272,2]
[348681362,1736712646749,-576.84,0.00010272,2]
[348681363,1736712646758,-500.0,0.00010272,2]
[348681364,1736712646768,-702.78,0.00010272,2]
[348681365,1736712646780,-852.51,0.00010272,2]
[348681366,1736712646789,-531.65,0.00010272,2]
[348681367,1736712646798,-682.12,0.00010272,2]
[348681368,1736712646808,-500.0,0.00010272,2]
[348681369,1736712646818,-3195.18,0.00010272,2]
[348681370,1736712646827,-539.05,0.00010272,2]
[348681371,1736712646837,-509.46,0.00010272,2]
[348681372,1736712646849,-500.0,0.00010272,2]
[348681373,1736712646858,-500.0,0.00010272,2]
[348681374,1736712646868,-2219.7,0.00010272,2]
[348681375,1736712646879,-785.29,0.00010272,2]
[348681376,1736712646890,-500.0,0.00010272,2]
[348681377,1736712646898,-500.0,0.00010272,2]
[348681378,1736712646908,-637.79,0.00010272,2]
[348681379,1736712646917,-591.76,0.00010272,2]
[348681380,1736712646926,-2446.63,0.00010272,2]
[348681381,1736712646935,-500.0,0.00010272,2]
[348681382,1736712646946,-677.79,0.00010272,2]
[348681383,1736712646956,-678.59,0.00010272,2]
[348681384,1736712646966,-500.0,0.00010272,2]
[348681385,1736712646976,-658.08,0.00010272,2]
[348681386,1736712646986,-695.73,0.00010272,2]
[348681387,1736712646997,-593.38,0.00010272,2]
[348681388,1736712647008,-500.0,0.00010272,2]
[348681389,1736712647018,-569.13,0.00010272,2]
[348681390,1736712647027,-500.0,0.00010272,2]
[348681391,1736712647036,-802.1,0.00010272,2]
[348681392,1736712647047,-578.41,0.00010272,2]
[348681393,1736712647056,-500.0,0.00010272,2]
[348681394,1736712647065,-659.69,0.00010272,2]
[348681395,1736712647074,-500.0,0.00010272,2]
[348681396,1736712647086,-2162.49,0.00010273,2]
[348681397,1736712647096,-4001.87,0.00010273,2]
[348681398,1736712647108,-691.07,0.00010273,2]
[348681399,1736712647117,-587.7,0.00010273,2]
[348681400,1736712647126,-1516.5,0.00010273,2]
[348681401,1736712647136,-711.53,0.00010273,2]
[348681402,1736712647146,-495.01602722,0.00010314,2]
[348681403,1736712647156,-156.7464976,0.00010329,2]
[348681404,1736712647165,-1000.0,0.00010357,2]
[348681405,1736712647176,-465.81,0.00010358,2]
[348681406,1736712647185,-1051.49,0.00010358,2]
[348681407,1736712647194,-500.0,0.00010359,2]
[348681408,1736712647205,-1786.57,0.00010359,2]
[348681409,1736712647216,-1478.79,0.00010359,2]
[348681410,1736712647225,-500.0,0.00010359,2]
[348681411,1736712647234,-1052.16,0.00010359,2]
[348681412,1736712647243,-1214.15,0.00010359,2]
[348681413,1736712647253,-704.78,0.00010359,2]
[348681414,1736712647262,-1000.0,0.00010359,2]
[348681415,1736712647271,-942.89,0.00010359,2]
[348681416,1736712647281,-150.0,0.00010368,2]
[348681417,1736712647289,-150.0,0.00010405,2]
[348681418,1736712647299,-495.01602722,0.00010417,2]
[348681419,1736712647308,-800.39,0.00010421,2]
[348681420,1736712647318,-661.14497972,0.00010446,2]
[348681421,1736712647327,-500.0,0.00010456,2]
[348681422,1736712647338,-500.0,0.00010456,2]
[348681423,1736712647348,-500.0,0.00010456,2]
[348681424,1736712647357,-550.07,0.00010456,2]
[348681425,1736712647366,-500.0,0.00010456,2]
[348681426,1736712647375,-791.51,0.00010456,2]
[348681427,1736712647385,-2996.35,0.00010456,2]
[348681428,1736712647394,-500.0,0.00010456,2]
[348681429,1736712647404,-500.0,0.00010456,2]
[348681430,1736712647417,-547.82,0.00010456,2]
[348681431,1736712647426,-586.43,0.00010456,2]
[348681432,1736712647435,-500.0,0.00010456,2]
[348681433,1736712647445,-500.0,0.00010456,2]
[348681434,1736712647455,-500.0,0.00010456,2]
[348681435,1736712647465,-511.68,0.00010456,2]
[348681436,1736712647474,-500.0,0.00010456,2]
[348681437,1736712647483,-866.96,0.00010456,2]
[348681438,1736712647492,-217.91069669,0.00010456,2]
[348681439,1736712647503,-500.0,0.00010456,2]
[348681440,1736712647512,-500.0,0.00010456,2]
[348681441,1736712647521,-500.0,0.00010456,2]
[348681442,1736712647530,-507.21,0.00010456,2]
[348681443,1736712647539,-500.0,0.00010456,2]
[348681444,1736712647548,-594.93,0.00010456,2]
[348681445,1736712647558,-605.19802321,0.00010456,2]
[348681446,1736712647568,-500.0,0.00010456,2]
[348681447,1736712647578,-500.0,0.00010456,2]
[348681448,1736712647586,-986.35,0.00010456,2]
[348681449,1736712647595,-500.0,0.00010456,2]
[348681450,1736712647605,-802.5,0.00010456,2]
[348681451,1736712647614,-730.81,0.00010456,2]
[348681452,1736712647623,-808.68,0.00010456,2]
[348681453,1736712647632,-838.73,0.00010456,2]
[348681454,1736712647641,-500.0,0.00010456,2]
[348681455,1736712647650,-637.01,0.00010456,2]
[348681456,1736712647659,-500.0,0.00010456,2]
[348681457,1736712647668,-855.53,0.00010456,2]
[348681458,1736712647677,-1552.51,0.00010456,2]
[348681459,1736712647687,-4782.0,0.00010456,2]
[348681460,1736712647696,-500.0,0.00010456,2]
[348681461,1736712647705,-594.5,0.00010456,2]
[348681462,1736712647714,-532.91,0.00010456,2]
[348681463,1736712647723,-500.0,0.00010456,2]
[348681464,1736712647733,-1735.16,0.00010456,2]
[348681465,1736712647742,-852.09,0.00010456,2]
[348681466,1736712647751,-248.73293838,0.00010456,2]
[348681467,1736712647760,-728.62,0.00010456,2]
[348681468,1736712647769,-500.0,0.00010456,2]
[348681469,1736712647778,-1291.45,0.00010456,2]
[348681470,1736712647787,-601.91,0.00010456,2]
[348681471,1736712647796,-1452.25,0.00010456,2]
[348681472,1736712647805,-500.0,0.00010456,2]
[348681473,1736712647814,-3157.34,0.00010456,2]
[348681474,1736712647823,-3731.52,0.00010456,2]
[348681475,1736712647832,-500.0,0.00010456,2]
[348681476,1736712647841,-500.0,0.00010456,2]
[348681477,1736712647850,-932.38,0.00010456,2]
[348681478,1736712647859,-616.45,0.00010456,2]
[348681479,1736712647868,-3490.99,0.00010456,2]
[348681480,1736712647877,-680.21,0.00010456,2]
[348681481,1736712647886,-657.85,0.00010456,2]
[348681482,1736712647895,-1250.78,0.00010456,2]
[348681483,1736712647903,-572.33,0.00010456,2]
[348681484,1736712647912,-500.0,0.00010456,2]
[348681485,1736712647922,-500.0,0.00010456,2]
[348681486,1736712647931,-1103.59,0.00010456,2]
[348681487,1736712647940,-632.07,0.00010456,2]
[348681488,1736712647949,-500.0,0.00010456,2]
[348681489,1736712647958,-500.0,0.00010456,2]
[348681490,1736712647967,-500.0,0.00010456,2]
[348681491,1736712647976,-993.8,0.00010456,2]
[348681492,1736712647985,-500.0,0.00010457,2]
[348681493,1736712647994,-500.0,0.00010457,2]
[348681494,1736712648005,-510.19,0.00010457,2]
[348681495,1736712648014,-500.0,0.00010457,2]
[348681496,1736712648024,-500.0,0.00010457,2]
[348681497,1736712648033,-500.0,0.00010457,2]
[348681498,1736712648042,-500.0,0.00010457,2]
[348681499,1736712648052,-500.0,0.00010457,2]
[348681500,1736712648060,-500.0,0.00010457,2]
[348681501,1736712648069,-500.0,0.00010457,2]
[348681502,1736712648079,-342.03,0.00010457,2]
[348681503,1736712648088,-500.0,0.00010457,2]
[348681504,1736712648097,-500.0,0.00010457,2]
[348681505,1736712648106,-310.98337892,0.00010457,2]
[348681506,1736712648114,-738.14,0.00010457,2]
[348681507,1736712648123,-539.62,0.00010457,2]
[348681508,1736712648133,-1052.86,0.00010457,2]
[348681509,1736712648142,-751.08,0.00010457,2]
[348681510,1736712648151,-532.75,0.00010457,2]
[348681511,1736712648160,-831.34,0.00010457,2]
[348681512,1736712648169,-638.66,0.00010457,2]
[348681513,1736712648178,-500.0,0.00010457,2]
[348681514,1736712648187,-500.0,0.00010457,2]
[348681515,1736712648197,-873.65,0.00010457,2]
[348681516,1736712648206,-500.0,0.00010457,2]
[348681517,1736712648217,-1154.2,0.00010457,2]
[348681518,1736712648226,-1526.88,0.00010457,2]
[348681519,1736712648235,-1004.48,0.00010457,2]
[348681520,1736712648446,-986.69,0.00010457,2]
[348681521,1736712648457,-945.58,0.00010457,2]
[348681522,1736712648467,-3130.05,0.00010457,2]
[348681523,1736712648477,-887.76,0.00010457,2]
[348681524,1736712648486,-1301.7,0.00010457,2]
[348681525,1736712648498,-918.22,0.00010457,2]
[348681526,1736712648508,-2136.13,0.00010457,2]
[348681527,1736712648517,-554.45,0.00010457,2]
[348681528,1736712648526,-1105.21,0.00010457,2]
[348681529,1736712648535,-838.97,0.00010457,2]
[348681530,1736712648544,-1146.87,0.00010457,2]
[348681531,1736712648554,-1041.41,0.00010457,2]
[348681532,1736712648564,-500.0,0.00010457,2]
[348681533,1736712648573,-911.09,0.00010457,2]
[348681534,1736712648582,-830.05,0.00010457,2]
[348681535,1736712648592,-1323.08,0.00010457,2]
[348681536,1736712648601,-156.7464976,0.0001046,2]
[348681537,1736712648611,-150.0,0.0001049,2]
[348681538,1736712648620,-316.63,0.00010506,2]
[348681539,1736712648629,-495.01602722,0.00010521,2]
[348681540,1736712648638,-164.056,0.0001053,2]
[348681541,1736712648647,-757.74,0.00010544,2]
[348681542,1736712648656,-1842.24,0.00010544,2]
[348681543,1736712648665,-1719.0,0.00010544,2]
[348681544,1736712648675,-734.77,0.00010544,2]
[348681545,1736712648684,-1269.92,0.00010544,2]
[348681546,1736712648694,-800.91,0.00010544,2]
[348681547,1736712648702,-515.51,0.00010544,2]
[348681548,1736712648712,-2080.74,0.00010544,2]
[348681549,1736712648721,-1140.87,0.00010544,2]
[348681550,1736712648730,-837.61,0.00010544,2]
[348681551,1736712648739,-500.0,0.00010544,2]
[348681552,1736712648748,-648.86,0.00010544,2]
[348681553,1736712648757,-500.0,0.00010545,2]
[348681554,1736712648767,-524.09,0.00010545,2]
[348681555,1736712648776,-803.4,0.00010545,2]
[348681556,1736712648785,-1566.51,0.00010545,2]
[348681557,1736712648795,-939.66,0.00010545,2]
[348681558,1736712648804,-628.68,0.00010545,2]
[348681559,1736712648813,-647.88809,0.00010545,2]
[348681560,1736712648822,-603.991468,0.00010545,2]
[348681561,1736712648831,-2883.78,0.00010545,2]
[348681562,1736712648840,-757.35,0.00010545,2]
[348681563,1736712648850,-674.02,0.00010545,2]
[348681564,1736712648860,-659.59,0.00010545,2]
[348681565,1736712648870,-574.95,0.00010546,2]
[348681566,1736712648879,-500.0,0.00010546,2]
[348681567,1736712648887,-695.67,0.00010546,2]
[348681568,1736712648897,-500.0,0.00010546,2]
[348681569,1736712648906,-576.35,0.00010546,2]
[348681570,1736712648916,-500.0,0.00010546,2]
[348681571,1736712648925,-500.0,0.00010546,2]
[348681572,1736712648935,-500.0,0.00010546,2]
[348681573,1736712648945,-547.83,0.00010546,2]
[348681574,1736712648955,-500.0,0.00010546,2]
[348681575,1736712648964,-535.21,0.00010546,2]
[348681576,1736712648974,-523.45,0.00010546,2]
[348681577,1736712648984,-500.0,0.00010546,2]
[348681578,1736712648993,-500.0,0.00010546,2]
[348681579,1736712649003,-500.0,0.00010546,2]
[348681580,1736712649012,-652.68,0.00010546,2]
[348681581,1736712649021,-500.0,0.00010546,2]
[348681582,1736712649031,-500.0,0.00010546,2]
[348681583,1736712649040,-632.58,0.00010546,2]
[348681584,1736712649050,-500.0,0.00010546,2]
[348681585,1736712649059,-752.01,0.00010546,2]
[348681586,1736712649069,-607.94,0.00010546,2]
[348681587,1736712649079,-500.0,0.00010546,2]
[348681588,1736712649088,-406.94117626,0.00010546,2]
[348681589,1736712649098,-628.06,0.00010546,2]
[348681590,1736712649107,-500.0,0.00010546,2]
[348681591,1736712649117,-500.0,0.00010546,2]
[348681592,1736712649126,-1051.49,0.00010546,2]
[348681593,1736712649135,-500.0,0.00010546,2]
[348681594,1736712649144,-500.0,0.00010546,2]
[348681595,1736712649153,-500.0,0.00010546,2]
[348681596,1736712649163,-500.0,0.00010546,2]
[348681597,1736712649172,-702.13,0.00010546,2]
[348681598,1736712649182,-672.86,0.00010546,2]
[348681599,1736712649191,-555.66,0.00010546,2]
[348681600,1736712649201,-731.29,0.00010546,2]
[348681601,1736712649211,-625.61,0.00010546,2]
[348681602,1736712649220,-500.0,0.00010546,2]
[348681603,1736712649230,-500.0,0.00010546,2]
[348681604,1736712649240,-661.41,0.00010546,2]
[348681605,1736712649249,-500.0,0.00010546,2]
[348681606,1736712649259,-778.03,0.00010546,2]
[348681607,1736712649269,-614.98,0.00010546,2]
[348681608,1736712649278,-587.75,0.00010546,2]
[348681609,1736712649288,-549.03,0.00010546,2]
[348681610,1736712649298,-500.0,0.00010546,2]
[348681611,1736712649307,-500.0,0.00010546,2]
[348681612,1736712649317,-500.0,0.00010546,2]
[348681613,1736712649327,-561.06,0.00010546,2]
[348681614,1736712649338,-500.0,0.00010546,2]
[348681615,1736712649348,-500.0,0.00010546,2]
[348681616,1736712649357,-544.16,0.00010546,2]
[348681617,1736712649367,-500.0,0.00010546,2]
[348681618,1736712649377,-562.49,0.00010546,2]
[348681619,1736712649386,-500.0,0.00010546,2]
[348681620,1736712649395,-500.0,0.00010546,2]
[348681621,1736712649405,-524.66,0.00010546,2]
[348681622,1736712649420,-738.6,0.00010546,2]
[348681623,1736712649430,-576.84,0.00010546,2]
[348681624,1736712649440,-505.94,0.00010546,2]
[348681625,1736712649449,-702.78,0.00010546,2]
[348681626,1736712649460,-852.51,0.00010546,2]
[348681627,1736712649470,-531.65,0.00010546,2]
[348681628,1736712649479,-682.12,0.00010546,2]
[348681629,1736712649489,-500.0,0.00010546,2]
[348681630,1736712649498,-3195.18,0.00010546,2]
[348681631,1736712649507,-539.05,0.00010546,2]
[348681632,1736712649517,-509.46,0.00010546,2]
[348681633,1736712649526,-500.0,0.00010546,2]
[348681634,1736712649535,-500.0,0.00010546,2]
[348681635,1736712649544,-2219.7,0.00010546,2]
[348681636,1736712649553,-785.29,0.00010546,2]
[348681637,1736712649562,-500.0,0.00010546,2]
[348681638,1736712649571,-500.0,0.00010546,2]
[348681639,1736712649581,-637.79,0.00010546,2]
[348681640,1736712649590,-591.76,0.00010546,2]
[348681641,1736712649599,-2446.63,0.00010546,2]
[348681642,1736712649608,-500.0,0.00010546,2]
[348681643,1736712649618,-677.79,0.00010546,2]
[348681644,1736712649627,-678.59,0.00010546,2]
[348681645,1736712649637,-500.0,0.00010546,2]
[348681646,1736712649646,-658.08,0.00010546,2]
[348681647,1736712649655,-695.73,0.00010546,2]
[348681648,1736712649664,-593.38,0.00010546,2]
[348681649,1736712649673,-500.0,0.00010546,2]
[348681650,1736712649682,-569.13,0.00010546,2]
[348681651,1736712649691,-500.0,0.00010546,2]
[348681652,1736712649700,-802.1,0.00010546,2]
[348681653,1736712649709,-578.41,0.00010546,2]
[348681654,1736712649718,-500.0,0.00010546,2]
[348681655,1736712649727,-659.69,0.00010546,2]
[348681656,1736712649736,-500.0,0.00010546,2]
[348681657,1736712649746,-2162.49,0.00010547,2]
[348681658,1736712649755,-4001.87,0.00010547,2]
[348681659,1736712649764,-691.07,0.00010547,2]
[348681660,1736712649773,-587.7,0.00010547,2]
[348681661,1736712649782,-1516.5,0.00010547,2]
[348681662,1736712649791,-711.53,0.00010547,2]
[348681663,1736712649800,-150.0,0.00010559,2]
[348681664,1736712649808,-156.7464976,0.0001059,2]
[348681665,1736712649818,-150.0,0.00010611,2]
[348681666,1736712649827,-495.01602722,0.00010624,2]
[348681667,1736712649836,-500.0,0.00010633,2]
[348681668,1736712649845,-1786.57,0.00010633,2]
[348681669,1736712649854,-1478.79,0.00010633,2]
[348681670,1736712649863,-500.0,0.00010633,2]
[348681671,1736712649872,-1052.16,0.00010633,2]
[348681672,1736712649881,-1214.15,0.00010633,2]
[348681673,1736712649890,-704.78,0.00010633,2]
[348681674,1736712649899,-1000.0,0.00010633,2]
[348681675,1736712649908,-942.89,0.00010633,2]
[348681676,1736712649916,-300.0,0.00010636,2]
[348681677,1736712649926,-980.06,0.00010636,2]
[348681678,1736712649935,-980.06,0.00010636,2]
[348681679,1736712649944,-1960.12,0.00010636,2]
[348681680,1736712649953,-820.12,0.00010636,2]
[348681681,1736712649962,-1044.82,0.000107,2]
[348681682,1736712649971,-661.14497972,0.00010713,2]
[348681683,1736712649980,-156.7464976,0.0001072,2]
[348681684,1736712649989,-495.01602722,0.00010728,2]
[348681685,1736712649998,-500.0,0.0001073,2]
[348681686,1736712650007,-500.0,0.0001073,2]
[348681687,1736712650016,-500.0,0.0001073,2]
[348681688,1736712650025,-550.07,0.0001073,2]
[348681689,1736712650036,-500.0,0.0001073,2]
[348681690,1736712650045,-791.51,0.0001073,2]
[348681691,1736712650055,-500.0,0.0001073,2]
[348681692,1736712650065,-500.0,0.0001073,2]
[348681693,1736712650074,-547.82,0.0001073,2]
[348681694,1736712650083,-586.43,0.0001073,2]
[348681695,1736712650093,-500.0,0.0001073,2]
[348681696,1736712650104,-500.0,0.0001073,2]
[348681697,1736712650114,-500.0,0.0001073,2]
[348681698,1736712650124,-511.68,0.0001073,2]
[348681699,1736712650133,-500.0,0.0001073,2]
[348681700,1736712650145,-866.96,0.0001073,2]
[348681701,1736712650154,-500.0,0.0001073,2]
[348681702,1736712650163,-500.0,0.0001073,2]
[348681703,1736712650172,-500.0,0.0001073,2]
[348681704,1736712650181,-507.21,0.0001073,2]
[348681705,1736712650190,-500.0,0.0001073,2]